Cogmind - Beta 15 @@@ ROGUE MODE // 2025.09.16 @ 20:34:53 Player: SpaceWalrus Result: Destroyed by G-67 Veteran with Plasma Rifle Performance ------------- Evolutions (7) 3500 Regions Visited (12) 2400 Robots Destroyed (100) 500 Value Destroyed (2591) 2591 Prototype IDs (26) 520 Alien Tech Used (0) 0 Bonus (238) 238 TOTAL SCORE: 9749 Bonus ------- High Alert Combat Kills 26 Follower Combat Kills 411 Aligned with FarCom 300 Friendly Fire -499 Cogmind --------- Core Integrity 0/1300 Matter 140/300 Energy 99/100 System Corruption 9% Temperature Cool (0) Movement Core (50) Location -3/Research Parts ------- > --- POWER (3) -------- (None) > --- PROPULSION (5) --- (None) > --- UTILITY (10) ----- Advanced Targeting Computer > --- WEAPON (3) ------- (None) > --- INVENTORY (5) ---- Micro Antimatter Reactor Gyrokinetic Inverter Improved Shock Absorption System Peak State ------------ > --- POWER ------------ Micro Fission Core Antimatter Reactor > --- PROPULSION ------- Thunder Leg Thunder Leg Thunder Leg Potential Leg > --- UTILITY ---------- Improved Cryofiber Web Advanced Heat Sink Large Storage Unit Weapon Cycler Improved Utility Shielding Hardened Medium Armor Plating Improved Shock Absorption System Dynamic Insulation System > --- WEAPON ----------- Heavy Beamcaster Heavy Beamcaster Heavy Beamcaster > --- INVENTORY -------- Improved Ion Engine Carbon-fiber Leg Carbon-fiber Leg Improved Cryofiber Web Advanced Heat Sink Core Shielding Improved Utility Shielding Hardened Light Armor Plating Hardened Light Armor Plating Advanced Hacking Suite Heavy Beamcaster Heavy Phase Cannon [Rating: 94] Favorites ----------- Power Light Nuclear Core Engine Ion Engine Power Core Light Nuclear Core Reactor Antimatter Reactor Propulsion Aluminum Leg Treads Advanced Medium Treads Leg Aluminum Leg Hover Unit Gyrokinetic Inverter Flight Unit Field Propulsion Drive Utility Core Shielding Device Structural Scanner Storage Large Storage Unit Processor Improved Targeting Computer Hackware Advanced Hacking Suite Protection Core Shielding Weapon Heavy Beamcaster Energy Gun Heavy Beamcaster Ballistic Gun Light Assault Rifle Launcher Rocket Launcher Build | -11 -10 -10 -10 -9 -8 -7 -7 -7 -6 -5 -4 -3 ------- Run | Yrd Mat Min Exi Min Mat Fac Was Fac Fac Fac Fac Res Slots Evolved 14 | . . . . . 4 2 . . 2 2 2 2 Power 2 | . . . . . 1 . . . . . . 1 Propulsion 3 | . . . . . . 1 . . . 1 1 . Utility 8 | . . . . . 3 1 . . 1 1 1 1 Weapon 1 | . . . . . . . . . 1 . . . Parts Attached 99 | 7 11 2 3 . 12 2 6 3 11 21 7 14 Power 13 | 1 . . . . 2 . 1 . 3 2 1 3 Engine 5 | 1 . . . . 1 . . . 3 . . . Core 3 | . . . . . 1 . 1 . . 1 . . Reactor 5 | . . . . . . . . . . 1 1 3 Propulsion 23 | 2 2 . 2 . 2 . . . 1 8 1 5 Treads 1 | . . . . . . . . . . . 1 . Leg 14 | 2 2 . 2 . 2 . . . 1 4 . 1 Wheel . | . . . . . . . . . . . . . Hover 1 | . . . . . . . . . . . . 1 Flight 7 | . . . . . . . . . . 4 . 3 Utility 44 | 2 5 1 1 . 4 2 4 1 6 9 4 5 Device 24 | 1 2 1 . . 2 . 1 1 5 4 3 4 Storage 3 | 1 . . 1 . 1 . . . . . . . Processor 5 | . . . . . 1 . 1 . 1 . 1 1 Hackware 2 | . . . . . . 1 . . . 1 . . Protection 10 | . 3 . . . . 1 2 . . 4 . . Artifact . | . . . . . . . . . . . . . Weapon 19 | 2 4 1 . . 4 . 1 2 1 2 1 1 Energy Gun 9 | 1 2 . . . 1 . 1 1 1 2 . . Energy Cannon . | . . . . . . . . . . . . . Ballistic Gun 3 | 1 1 . . . . . . . . . 1 . Ballistic Cannon . | . . . . . . . . . . . . . Launcher 7 | . 1 1 . . 3 . . 1 . . . 1 Special Weapon . | . . . . . . . . . . . . . Impact Weapon . | . . . . . . . . . . . . . Slashing Weapon . | . . . . . . . . . . . . . Piercing Weapon . | . . . . . . . . . . . . . Special Melee Weapon . | . . . . . . . . . . . . . Unidentified Prototypes 3 | . . . . . 2 . . . . . . 1 Parts Lost 46 | . 3 1 . . 1 . . . 4 14 15 8 Power 7 | . . . . . . . . . 1 4 1 1 Propulsion 13 | . 1 . . . . . . . 1 3 5 3 Utility 18 | . 1 . . . 1 . . . 2 4 7 3 Weapon 8 | . 1 1 . . . . . . . 3 2 1 Highest Loss Streak 13 | . 2 1 . . 1 . . . 2 5 13 8 To Critical Strikes 1 | . . . . . . . . . . . 1 . Average Backups 9 | 2 7 6 7 7 10 13 12 14 14 12 2 4 Power 1 | 1 . 1 1 1 . 1 1 1 1 1 . . Propulsion 1 | . . 1 1 1 1 2 2 2 . 1 . . Utility 4 | . 2 3 3 3 3 2 3 5 7 6 2 2 Weapon 2 | . 2 1 2 2 5 6 5 5 4 2 . . Tool/Special . | . . . . . . . . . . . . . Unused Backups 24 | . 1 . . 1 1 . 10 . 2 8 . 1 Power 4 | . 1 . . . . . 1 . 1 1 . . Propulsion 4 | . . . . . . . 1 . 1 2 . . Utility 8 | . . . . . . . 3 . . 4 . 1 Weapon 8 | . . . . 1 1 . 5 . . 1 . . Tool/Special . | . . . . . . . . . . . . . Average Slot Usage (%) 89 | . 99 100 100 100 98 99 99 100 98 94 56 15 Engine 7 | . 14 14 14 14 8 7 3 . 5 3 . . Core 3 | . . . . . 8 7 11 15 7 4 . . Leg 20 | . 28 28 28 28 18 23 23 23 19 19 3 . Device 14 | . 3 12 14 14 24 15 14 12 15 25 20 5 Storage 8 | . 13 14 14 14 9 7 7 7 6 4 . . Processor 2 | . . . . . 2 . 3 7 10 . 4 3 Protection 8 | . 10 1 . . 8 14 15 17 13 11 6 . Energy Gun 11 | . 19 14 14 14 9 7 7 9 12 12 1 . Launcher 6 | . 4 14 14 14 9 7 7 4 5 2 . . Peak Build Rating 94 | 9 10 10 28 28 43 44 47 51 67 94 81 86 Average Rating 38 | 5 9 9 16 28 38 42 44 48 59 78 58 27 On Entrance 30 | . 9 10 10 28 28 41 43 45 51 67 50 8 Naked Turns 18 | . . . . . . . . . . . . 18 Heaviest Build 72 | 14 20 18 53 53 67 48 54 54 64 72 37 26 Greatest Support 99 | 20 20 20 60 60 60 55 55 55 60 99 30 32 Greatest Overweight (x) 17 | . . . . . 1 . . . 1 17 5 2 Average Overweight (x) . | . . . . . . . . . . . . . Largest Inventory Capacity 20 | 8 8 8 20 20 20 15 15 15 15 15 5 5 Average Capacity 12 | 7 7 8 8 20 17 15 15 15 15 14 5 5 Most Carried 15 | 5 8 7 8 7 14 15 15 15 15 15 5 5 Average Carried 9 | 2 7 6 7 7 10 13 13 14 14 12 2 4 Final Capacity 20 | 8 8 8 20 20 15 15 15 15 15 5 5 5 Final Carried 15 | 2 7 7 7 7 14 15 13 14 15 4 2 3 Class Distribution -------------------- 53% | Mutant 17% | Scavenger-Mutant 9% | Tank 7% | Gunner 5% | Scavenger-Tank 4% | Scavenger-Gunner Dominant Class ---------------- Mutant | -10/Materials Mutant | -10/Mines Mutant | -10/Exiles Mutant | -9/Mines Scavenger-Mutant | -8/Materials Scavenger-Mutant | -7/Factory Scavenger-Mutant | -7/Waste Scavenger-Mutant | -7/Factory Gunner | -6/Factory Tank | -5/Factory Mutant | -4/Factory Mutant | -3/Research Resources | -11 -10 -10 -10 -9 -8 -7 -7 -7 -6 -5 -4 -3 ----------- Run | Yrd Mat Min Exi Min Mat Fac Was Fac Fac Fac Fac Res Matter Collected 1700 | 265 340 85 . 77 213 . 91 60 176 243 150 . Remotely . | . . . . . . . . . . . . . Salvage Created 3234 | 38 492 3 . 27 795 . 283 . 439 1007 150 . Parts 155 | 6 29 1 . 5 51 . 3 . 18 38 4 . Haulers Intercepted 4 | . 2 . . . 1 . . . 1 . . . Recyclers Shooed 4 | . . . . . 1 . . . . 3 . . Parts Field Recycled . | . . . . . . . . . . . . . Retrieved Matter . | . . . . . . . . . . . . . Parts Self-Destructed . | . . . . . . . . . . . . . Prevented . | . . . . . . . . . . . . . Kills | -11 -10 -10 -10 -9 -8 -7 -7 -7 -6 -5 -4 -3 ------- Run | Yrd Mat Min Exi Min Mat Fac Was Fac Fac Fac Fac Res Combat Hostiles Destroyed 71 | . 16 3 . 7 15 . 1 . 9 18 2 . Guns 23 | . 7 . . . 1 . . . 5 10 . . AOE 44 | . 9 3 . 7 13 . 1 . 4 7 . . Classes Destroyed 13 | 1 7 . . . 2 . 1 . . 1 1 . Worker 4 | . 1 . . . 1 . . . 1 1 . . Builder 3 | . 1 . . . 1 . . . 1 . . . Tunneler 3 | 2 1 . . . . . . . . . . . Hauler 4 | . 2 . . . 1 . . . 1 . . . Recycler 5 | . . . . . 1 . . . . 4 . . Operator 2 | . 1 . . . . . . . 1 . . . Watcher 5 | . 3 . . . 1 . . . . 1 . . Swarmer 38 | . 6 3 . 7 6 . . . 3 13 . . Grunt 24 | . 10 . . . 6 . . . 5 3 . . Sentry 6 | . . . . . 3 . . . 1 1 1 . Hunter 1 | . . . . . . . . . . . 1 . Programmer 1 | . . . . . . . . . . 1 . . Compactor 1 | . . . . . . . 1 . . . . . Wasp 3 | . . . . . . . 3 . . . . . Best Kill Streak 7 | 2 6 3 . 7 7 . 1 . 4 5 1 . Combat Bots Only 7 | . 4 3 . 7 5 . 1 . 3 5 1 . Max Kills in Single Turn 4 | 1 3 1 . 3 3 . 4 . 3 3 1 . Gunslinging . | . . . . . . . . . . . . . Exploded 3 | . 3 1 . 3 3 . 1 . 3 3 . . Melee . | . . . . . . . . . . . . . Uniques/NPCs Destroyed . | . . . . . . . . . . . . . Combat | -11 -10 -10 -10 -9 -8 -7 -7 -7 -6 -5 -4 -3 -------- Run | Yrd Mat Min Exi Min Mat Fac Was Fac Fac Fac Fac Res Hostile Shots Fired 688 | . 49 5 . 9 40 . . . 17 158 171 239 Missed 280 | . 6 2 . 5 15 . . . 3 64 63 122 Hits 408 | . 43 3 . 4 25 . . . 14 94 108 117 Melee 1 | . . . . . . . . . . 1 . . Projectile 407 | . 43 3 . 4 25 . . . 14 93 108 117 AOE 4 | . . . . . . . . . . 4 . . Critical Strikes 15 | . 2 . . . 2 . . . 2 1 4 4 Actively Blocked 1 | . . . . . 1 . . . . . . . Damage Taken 7757 | . 598 130 . 53 357 . 41 . 451 2076 1906 2145 Core 2465 | . 69 7 . . 94 . . . 16 282 685 1312 Absorbed by Shields 207 | . 41 . . . 82 . . . . . . 84 Redirected to Shielding 157 | . . 1 . . 21 . . . 4 64 67 . Regen/Repaired (Parts) 232 | . . . . . . . 54 . 102 76 . . Core Remaining (%) 80 | 100 . . . 69 82 . . 100 98 71 40 . Volleys Fired 220 | 20 50 9 . 4 23 . 2 2 17 53 39 1 Largest 3 | 1 2 1 . 1 2 . 1 2 2 3 1 1 Hottest 243 | 50 130 65 . 33 91 . 55 162 162 243 81 80 Shots Fired 334 | 20 79 9 . 4 37 . 2 4 30 109 39 1 Gun 287 | 20 66 4 . . 23 . 1 4 26 104 39 . Cannon . | . . . . . . . . . . . . . Launcher 47 | . 13 5 . 4 14 . 1 . 4 5 . 1 Special . | . . . . . . . . . . . . . Kinetic 18 | . 2 . . . . . . . . . 16 . Thermal 245 | 20 64 4 . . . . . 4 26 104 23 . Explosive 32 | . 13 5 . 4 . . 1 . 4 5 . . Electromagnetic 39 | . . . . . 37 . 1 . . . . 1 Robot Hit Streak 13 | 7 9 3 . 2 8 . 3 . 13 6 7 1 Robot Miss Streak 8 | 3 8 6 . 2 3 . . . 2 4 3 3 Penetration Max . | . . . . . . . . . . . . . Secondary Targets 2 | . . . . . . . . . . 2 . . Max Gunslinging Chain 1 | . . . . . . . . . . 1 . . Shots Hit Robots 211 | 14 58 6 . 1 21 . 2 . 22 56 30 1 Core Hits 184 | 3 61 6 . 8 25 . 8 . 27 31 10 5 Critical Kills . | . . . . . . . . . . . . . Critical Parts Destroyed . | . . . . . . . . . . . . . Critical Strikes 11 | . . . . . . . . . 1 7 3 . Burn 11 | . . . . . . . . . 1 7 3 . Melee Attacks . | . . . . . . . . . . . . . Impact . | . . . . . . . . . . . . . Slashing . | . . . . . . . . . . . . . Piercing . | . . . . . . . . . . . . . Sneak Attacks . | . . . . . . . . . . . . . Combat Hostiles . | . . . . . . . . . . . . . Follow-up Attacks . | . . . . . . . . . . . . . Damage Inflicted 8229 | 186 1491 249 . 386 1286 . 274 . 1199 2414 710 34 Guns 3834 | 186 659 39 . . 386 . 1 . 481 1431 651 . Cannons . | . . . . . . . . . . . . . Explosions 4315 | . 832 210 . 386 893 . 273 . 704 983 . 34 Melee . | . . . . . . . . . . . . . Ramming 80 | . . . . . 7 . . . 14 . 59 . Kinetic 239 | . 20 . . . . . . . . . 219 . Thermal 3545 | 186 639 39 . . 239 . . . 481 1529 432 . Explosive 3290 | . 832 210 . 386 . . 273 . 704 885 . . Electromagnetic 1075 | . . . . . 1040 . 1 . . . . 34 Impact . | . . . . . . . . . . . . . Slashing . | . . . . . . . . . . . . . Piercing . | . . . . . . . . . . . . . Highest Corruption 9 | . 2 2 2 2 . . . . 1 1 7 9 Average Corruption 2 | . 2 2 2 2 . . . . 1 1 3 7 Corruption Purged . | . . . . . . . . . . . . . Corruption Blocked . | . . . . . . . . . . . . . Effects 22 | . 5 6 4 5 . . . . . . . 2 Message Errors 4 | . 1 1 1 1 . . . . . . . . Matter Fused 5 | . 1 1 1 2 . . . . . . . . Heat Flow Errors 1 | . 1 . . . . . . . . . . . Energy Discharges 5 | . . 3 . 1 . . . . . . . 1 Parts Rejected 1 | . . . . . . . . . . . . 1 Parts Fused 1 | . 1 . . . . . . . . . . . Data Loss (minor) 2 | . . 1 . 1 . . . . . . . . Data Loss (major) 2 | . . . 2 . . . . . . . . . Weapon Failures 1 | . 1 . . . . . . . . . . . Overload Shots . | . . . . . . . . . . . . . Overflow Damage 247 | . 29 6 . 2 . . . . 30 180 . . Projectiles . | . . . . . . . . . . . . . Explosions 247 | . 29 6 . 2 . . . . 30 180 . . Melee . | . . . . . . . . . . . . . Knockbacks . | . . . . . . . . . . . . . Impact . | . . . . . . . . . . . . . Kinetic . | . . . . . . . . . . . . . Secondary . | . . . . . . . . . . . . . Self-Inflicted Damage 656 | . 124 110 . 23 20 . 19 . 52 277 24 7 Shots 18 | . 4 4 . 1 1 . 1 . 1 5 . 1 Rammed 24 | . . . . . . . . . . . 24 . Targets Rammed 27 | . . . . . 1 . . . 1 1 24 . Kicked 3 | . . . . . 1 . . . 1 1 . . Crushed . | . . . . . . . . . . . . . Highest Temperature 400 | 100 400 72 . . 6 . . 179 282 270 . 18 Average Temperature 107 | 50 125 33 . . 3 . . 95 112 102 . 13 Received Heat Transfer 768 | . 233 . . . 84 . . . 99 279 27 46 Effects 3 | . 2 . . . . . . . . 1 . . Shutdowns 1 | . 1 . . . . . . . . . . . Interference 1 | . . . . . . . . . . 1 . . Matter Decay 1 | . 1 . . . . . . . . . . . Siege Activations . | . . . . . . . . . . . . . Martial Activations . | . . . . . . . . . . . . . Shielding Activations . | . . . . . . . . . . . . . Robots Disrupted . | . . . . . . . . . . . . . Combat Hostiles . | . . . . . . . . . . . . . Robots Corrupted 1 | . . . . . 1 . . . . . . . Combat Hostiles 1 | . . . . . 1 . . . . . . . Parts Fried 6 | . . . . . 6 . . . . . . . Impact Corruptions . | . . . . . . . . . . . . . Robots Melted 3 | . . . . . . . . . . 1 2 . Combat Hostiles 3 | . . . . . . . . . . 1 2 . Parts Melted 17 | . 1 . . . . . . . 5 4 7 . Heat Transferred 6401 | 555 1022 45 . . 250 . . . 877 2838 814 . Parts Sabotaged 4 | . . . . . . . . . . 4 . . Parts Stolen . | . . . . . . . . . . . . . Parts Stripped . | . . . . . . . . . . . . . Power Chain Reactions 5 | . . . . . 5 . . . . . . . Alert | -11 -10 -10 -10 -9 -8 -7 -7 -7 -6 -5 -4 -3 ------- Run | Yrd Mat Min Exi Min Mat Fac Was Fac Fac Fac Fac Res Maximum Alert Level 2 | . 1 1 . 1 2 . . . 2 1 . . Low Security (%) 71 | 100 76 98 . 97 61 100 100 100 24 37 100 100 Level 1 26 | . 23 1 . 2 35 . . . 63 62 . . Level 2 1 | . . . . . 2 . . . 12 . . . Level 3 . | . . . . . . . . . . . . . Level 4 . | . . . . . . . . . . . . . Level 5 . | . . . . . . . . . . . . . High Security . | . . . . . . . . . . . . . Max Security . | . . . . . . . . . . . . . Peak Influence 433 | 10 352 202 . 207 422 188 48 56 433 359 151 89 Initial 205 | . . 113 . . 68 188 48 . 12 205 151 . Average 127 | 1 116 128 . 33 176 166 4 14 263 221 71 5 Influence Increases 3544 | 10 667 129 . 215 670 . 8 56 855 722 62 150 Destroy 0b10 Robot/C 1720 | . 320 60 . 140 360 . . 20 420 360 40 . Destroy 0b10 Robot/NC 140 | 10 45 . . . 25 . . . 30 30 . . Destroy Leader 370 | . 80 10 . 20 84 . . 10 104 42 20 . Allied During Kill 379 | . . . . 25 46 . . 26 254 28 . . Successful Hack 26 | . . . . . . . . . . 26 . . Disable Machine 225 | . 45 . . . 30 . . . 15 120 . 15 Destroy Structure 309 | . 102 29 . 30 20 . 8 . 32 86 2 . Lose Combat Pursuer 375 | . 75 30 . . 105 . . . . 30 . 135 Influence Decreases 3463 | 10 375 369 52 40 431 276 146 30 460 834 371 69 Entered New Map 1042 | . . 179 52 . 107 226 90 . 14 216 158 . Time Decay 1871 | 10 345 180 . 40 254 50 36 30 326 398 140 62 Lost Part 310 | . 30 10 . . 10 . . . 40 140 73 7 Lost Ally 240 | . . . . . 60 . 20 . 80 80 . . Squads Dispatched 19 | . 3 . . . 3 . . 1 4 3 2 3 Investigation 4 | . 1 . . . 1 . . 1 . 1 . . Extermination 6 | . . . . . . . . . 1 2 1 2 Reinforcement 9 | . 2 . . . 2 . . . 3 . 1 1 Assault . | . . . . . . . . . . . . . Garrison . | . . . . . . . . . . . . . Intercept . | . . . . . . . . . . . . . Searches Triggered . | . . . . . . . . . . . . . Construction Impeded 3 | . . . . . 1 . . . 2 . . . Haulers Reinforced . | . . . . . . . . . . . . . Active Scanning Responses . | . . . . . . . . . . . . . Cargo Convoy Interrupts 2 | . . . . . . . . . . 1 . 1 Stealth | -11 -10 -10 -10 -9 -8 -7 -7 -7 -6 -5 -4 -3 --------- Run | Yrd Mat Min Exi Min Mat Fac Was Fac Fac Fac Fac Res Distress Signals 13 | . . 1 . . 4 . . . 1 2 . 5 Communications Jammed . | . . . . . . . . . . . . . Distress Signals . | . . . . . . . . . . . . . Times Spotted 164 | . 25 3 . 8 21 . 1 . 16 44 6 40 Peak Tracking Total 26 | . 5 2 . 4 5 . 1 . 3 13 3 26 Tactical Retreats 13 | . 3 1 . . 5 . . . . 1 . 3 Traps | -11 -10 -10 -10 -9 -8 -7 -7 -7 -6 -5 -4 -3 ------- Run | Yrd Mat Min Exi Min Mat Fac Was Fac Fac Fac Fac Res Traps Triggered 9 | . 2 . . . 2 1 . . 2 . . 2 Indirectly 1 | . . . . . 1 . . . . . . . Trap Hack Attempts . | . . . . . . . . . . . . . Triggered . | . . . . . . . . . . . . . Disarmed . | . . . . . . . . . . . . . Reprogrammed . | . . . . . . . . . . . . . Reused . | . . . . . . . . . . . . . Traps Extracted . | . . . . . . . . . . . . . Installed . | . . . . . . . . . . . . . Triggered . | . . . . . . . . . . . . . Machines | -11 -10 -10 -10 -9 -8 -7 -7 -7 -6 -5 -4 -3 ---------- Run | Yrd Mat Min Exi Min Mat Fac Was Fac Fac Fac Fac Res Machines Disabled 15 | . 3 . . . 2 . . . 1 8 . 1 Max in Single Turn 4 | . 2 . . . 1 . . . . 4 . 1 Garrison Access 2 | . . . . . . . . . 1 1 . . Machines Repaired . | . . . . . . . . . . . . . Machines Dismantled . | . . . . . . . . . . . . . Machines Sabotaged . | . . . . . . . . . . . . . Overloaded Fab Kills . | . . . . . . . . . . . . . Hacking | -11 -10 -10 -10 -9 -8 -7 -7 -7 -6 -5 -4 -3 --------- Run | Yrd Mat Min Exi Min Mat Fac Was Fac Fac Fac Fac Res Machines Accessed 11 | . 1 . 5 . . . . . 2 3 . . Terminals 2 | . 1 . . . . . . . 1 . . . Fabricators . | . . . . . . . . . . . . . Repair Stations 2 | . . . . . . . . . . 2 . . Recycling Units . | . . . . . . . . . . . . . Scanalyzers . | . . . . . . . . . . . . . Garrison Access 2 | . . . . . . . . . 1 1 . . Total Hacks 49 | . 2 . 37 . . . . . 4 6 . . Successful 44 | . 1 . 37 . . . . . 1 5 . . Failed 5 | . 1 . . . . . . . 3 1 . . Catastrophic 1 | . 1 . . . . . . . . . . . Database Lockouts . | . . . . . . . . . . . . . Manual 1 | . . . 1 . . . . . . . . . Terminals 5 | . 2 . . . . . . . 3 . . . Fabricators . | . . . . . . . . . . . . . Repair Stations 5 | . . . . . . . . . . 5 . . Recycling Units . | . . . . . . . . . . . . . Scanalyzers . | . . . . . . . . . . . . . Garrison Access 2 | . . . . . . . . . 1 1 . . Terminal Hacks 38 | . 1 . 37 . . . . . . . . . Record 36 | . . . 36 . . . . . . . . . Alert Level 1 | . 1 . . . . . . . . . . . Proto ID Catalog 1 | . . . 1 . . . . . . . . . Fabricator Hacks . | . . . . . . . . . . . . . Repair Station Hacks 4 | . . . . . . . . . . 4 . . Scan Component 2 | . . . . . . . . . . 2 . . Repair 2 | . . . . . . . . . . 2 . . Recycling Unit Hacks . | . . . . . . . . . . . . . Scanalyzer . | . . . . . . . . . . . . . Garrison Access Hacks 2 | . . . . . . . . . 1 1 . . Seal Access 2 | . . . . . . . . . 1 1 . . Unauthorized Hacks . | . . . . . . . . . . . . . Terminals . | . . . . . . . . . . . . . Fabricators . | . . . . . . . . . . . . . Repair Stations . | . . . . . . . . . . . . . Recycling Units . | . . . . . . . . . . . . . Scanalyzers . | . . . . . . . . . . . . . Garrison Access . | . . . . . . . . . . . . . Data Cores Recovered 1 | . . . . . . . . . 1 . . . Used . | . . . . . . . . . . . . . Hacking Detections 4 | . 1 . . . . . . . 1 2 . . Full Trace Events 1 | . . . . . . . . . . 1 . . Feedback Events . | . . . . . . . . . . . . . Feedback Blocked . | . . . . . . . . . . . . . Robot Schematics Acquired . | . . . . . . . . . . . . . Robots Built . | . . . . . . . . . . . . . Authchips . | . . . . . . . . . . . . . Time . | . . . . . . . . . . . . . Total Robot Build Rating . | . . . . . . . . . . . . . Part Schematics Acquired . | . . . . . . . . . . . . . Parts Built . | . . . . . . . . . . . . . Authchips . | . . . . . . . . . . . . . Time . | . . . . . . . . . . . . . Total Part Build Rating . | . . . . . . . . . . . . . Parts Repaired 1 | . . . . . . . . . . 1 . . Time 84 | . . . . . . . . . . 84 . . Parts Recycled . | . . . . . . . . . . . . . Recycled Matter . | . . . . . . . . . . . . . Retrieved Matter . | . . . . . . . . . . . . . Retrieved Components . | . . . . . . . . . . . . . Parts Scanalyzed . | . . . . . . . . . . . . . Part Schematics Acquired . | . . . . . . . . . . . . . Parts Damaged . | . . . . . . . . . . . . . Bothacking | -11 -10 -10 -10 -9 -8 -7 -7 -7 -6 -5 -4 -3 ------------ Run | Yrd Mat Min Exi Min Mat Fac Was Fac Fac Fac Fac Res Used RIF Installer . | . . . . . . . . . . . . . Robots Hacked . | . . . . . . . . . . . . . Non-combat . | . . . . . . . . . . . . . Combat . | . . . . . . . . . . . . . Robot Hacks Applied . | . . . . . . . . . . . . . Relay Couplers Released . | . . . . . . . . . . . . . Fabnet Peak Effective % . | . . . . . . . . . . . . . Robots Rewired . | . . . . . . . . . . . . . Allies Hacked . | . . . . . . . . . . . . . Hacks Repelled . | . . . . . . . . . . . . . Allies | -11 -10 -10 -10 -9 -8 -7 -7 -7 -6 -5 -4 -3 -------- Run | Yrd Mat Min Exi Min Mat Fac Was Fac Fac Fac Fac Res Total Allies 23 | . . . . 3 . . 20 . . . . . Largest Group 20 | . . . . 3 3 . 20 14 13 6 . . Highest-Rated Group 485 | . . . . 40 40 . 485 380 349 170 . . Highest-Rated Ally 35 | . . . . 16 16 . 35 31 31 31 . . Total Orders . | . . . . . . . . . . . . . Ally Attacks 175 | . . . . 2 31 . 24 15 90 13 . . Total Damage 2544 | . . . . . 288 . 532 150 1428 146 . . Kills 20 | . . . . . 3 . 2 1 14 . . . Allies Corrupted 1 | . . . . . . . . . 1 . . . Allies Melted . | . . . . . . . . . . . . . Intel | -11 -10 -10 -10 -9 -8 -7 -7 -7 -6 -5 -4 -3 ------- Run | Yrd Mat Min Exi Min Mat Fac Was Fac Fac Fac Fac Res Active Infowar (turns) 2499 | 20 117 336 329 579 542 103 466 . . 7 . . Sensors 7 | . . . . . . . . . . 7 . . Terrain 137 | 20 117 . . . . . . . . . . . Structural 2355 | . . 336 329 579 542 103 466 . . . . . Robot Analysis Total . | . . . . . . . . . . . . . Derelict Logs Recovered 1 | . . . . 1 . . . . . . . . Drone Launches 2 | . . . . . . . . . . . . 2 Drone Recoveries . | . . . . . . . . . . . . . Exploration | -11 -10 -10 -10 -9 -8 -7 -7 -7 -6 -5 -4 -3 ------------- Run | Yrd Mat Min Exi Min Mat Fac Was Fac Fac Fac Fac Res Turns Passed 6526 | 94 1194 361 329 579 542 103 471 160 879 956 338 520 Spaces Moved 5022 | 42 829 276 300 405 267 87 387 122 620 630 226 831 Core 624 | 20 . . . . . . . . . 6 28 570 Treads 19 | . . . . . . . . . . . 19 . Legs 3841 | 22 829 276 300 405 267 87 387 122 620 526 . . Wheels . | . . . . . . . . . . . . . Hover . | . . . . . . . . . . . . . Flight 538 | . . . . . . . . . . 98 179 261 Fastest Speed 36 | 50 120 120 90 90 90 110 110 110 110 36 42 39 Average Speed 102 | 86 120 120 107 90 162 110 110 110 126 109 67 47 Slowest Speed 900 | 120 120 120 120 90 180 110 110 110 183 900 300 150 Overloaded Moves . | . . . . . . . . . . . . . Propulsion Burnouts . | . . . . . . . . . . . . . Robots Hopped 3 | . . . . . . . . . . . 1 2 Potential Cave-ins 2 | . . . . 2 . . . . . . . . Cave-ins Triggered . | . . . . . . . . . . . . . Exploration Rate (%) 35 | 4 80 36 63 73 30 2 94 2 24 23 6 20 Regions Visited 12 Branch Regions 3 Pre-discovered Areas 2 | . . . 1 1 . . . . . . . . Known Exits Taken . | . . . . . . . . . . . . . Unknown Exits Taken 10 | 1 1 1 1 1 1 . . 1 1 1 1 . Scrap Searched . | . . . . . . . . . . . . . Spaces Dug 12 | . . 7 . . . . . . . 5 . . Terrain Destroyed 333 | . 148 51 . 37 18 . 4 . 30 44 1 . Melee . | . . . . . . . . . . . . . Projectile 3 | . . . . . . . . . . 2 1 . AOE 330 | . 148 51 . 37 18 . 4 . 30 42 . . Terrain Rammed . | . . . . . . . . . . . . . Walls Destroyed . | . . . . . . . . . . . . . Machines Disabled . | . . . . . . . . . . . . . Actions | -11 -10 -10 -10 -9 -8 -7 -7 -7 -6 -5 -4 -3 --------- Run | Yrd Mat Min Exi Min Mat Fac Was Fac Fac Fac Fac Res Total 6108 | 78 948 296 307 615 336 94 438 144 691 831 371 959 Wait 516 | 4 32 9 . 205 12 . 13 12 16 77 61 75 Move 5005 | 41 828 275 299 404 266 87 386 121 619 629 223 827 Hop 3 | . . . . . . . . . . . 1 2 Pick Up 102 | 6 16 1 2 1 17 4 12 2 9 19 4 9 Fast Attach 23 | 3 2 . . . . . 2 1 3 2 4 6 Attach 66 | 4 7 1 . . 7 2 2 . 4 18 8 13 Detach 14 | . . . . . . . . . . 3 3 8 Swap 40 | . 6 1 3 . 6 1 3 3 7 9 1 . Drop 74 | . 7 . 3 1 4 . 17 3 10 20 3 6 Fire 220 | 20 50 9 . 4 23 . 2 2 17 53 39 1 Melee . | . . . . . . . . . . . . . Ram 24 | . . . . . . . . . . . 24 . Kick 3 | . . . . . 1 . . . 1 1 . . Crush . | . . . . . . . . . . . . . Escape Stasis 17 | . . . . . . . . . 5 . . 12 Rewire 1 | . . . . . . . 1 . . . . . Trap . | . . . . . . . . . . . . . Miscellaneous . | . . . . . . . . . . . . . Route ------- -11/Scrapyard -10/Materials (discovered 3 exits: [*Mat] / [*Min x2]) -10/Mines -10/Exiles -9/Mines -8/Materials -7/Factory -7/Waste -7/Factory -6/Factory -5/Factory -4/Factory -3/Research History --------- Turn | Location | Event 9 | -11/Scrapyard | Discovered new exit (range 16) 95 | -11/Scrapyard | Entered Materials 309 | -10/Materials | Build established: Mutant 533 | -10/Materials | Discovered new exit (range 16) 905 | -10/Materials | Discovered new exit (range 7) 1037 | -10/Materials | Discovered new exit (range 3) 1289 | -10/Materials | Entered Mines 1340 | -10/Mines | YI-UF0 nonchalantly dropped a Grenade Launcher on the ground 1419 | -10/Mines | Assembled infested the area 1645 | -10/Mines | Deemed a non-threat by the Exiles lab entrance 1645 | -10/Mines | Discovered new exit (range 5) 1650 | -10/Mines | Entered Exiles 1680 | -10/Exiles | Met 8R-AWN 1701 | -10/Exiles | Met EX-HEX 1737 | -10/Exiles | Met EX-BIN 1761 | -10/Exiles | Aligned with FarCom system 1762 | -10/Exiles | Given EX-Vault access code 1803 | -10/Exiles | Opened EX-Vault 1859 | -10/Exiles | Found Potential Leg 1861 | -10/Exiles | Found Potential Leg 1881 | -10/Exiles | Warned to stay clear of 0b10 Research branches 1912 | -10/Exiles | Met EX-DEC 1925 | -10/Exiles | Learned location of Zion (-7) 1967 | -10/Exiles | Discovered new exit (range 14) 1979 | -10/Exiles | Left Exiles lab with Potential Leg 1979 | -10/Exiles | Entered Mines 2028 | -9/Mines | Learned location of Storage (-7) 2035 | -9/Mines | Met a Derelict bent on vengeance 2042 | -9/Mines | Assisted by bots powering up and referring to "LRC-V3" 2408 | -9/Mines | Received a Rocket Launcher from a helpful Derelict 2487 | -9/Mines | Destroyed 7 combat bots 2537 | -9/Mines | Discovered new exit (range 9) 2558 | -9/Mines | Entered Materials 2558 | -8/Materials | Accompanied by 3 allies 2558 | -8/Materials | Evolved 4 slots: Power x1, Utility x3 2996 | -8/Materials | Build established: Scavenger-Mutant 3083 | -8/Materials | Discovered new exit (range 8) 3100 | -8/Materials | Entered Factory 3100 | -7/Factory | Evolved 2 slots: Propulsion x1, Utility x1 3130 | -7/Factory | Discovered new exit (range 7) 3203 | -7/Factory | Sucked down chute 3203 | -7/Factory | Entered Waste 3204 | -7/Waste | Joined by Warlord forces that had cleared the area 3223 | -7/Waste | A Compactor rumbled back to life 3223 | -7/Waste | Spotted C-40 Crusher 3229 | -7/Waste | Destroyed C-40 Crusher 3255 | -7/Waste | Murdered 3 allies 3256 | -7/Waste | Lost 3 allies 3275 | -7/Waste | Discovered new exit (range 15) 3301 | -7/Waste | Found Damper Plating 3674 | -7/Waste | Entered Factory 3674 | -7/Factory | Accompanied by 14 allies 3797 | -7/Factory | Discovered new exit (range 15) 3834 | -7/Factory | Entered another Factory area 3834 | -6/Factory | Accompanied by 13 allies 3834 | -6/Factory | Evolved 2 slots: Utility x1, Weapon x1 4451 | -6/Factory | Build established: Gunner 4509 | -6/Factory | Discovered new exit (range 7) 4713 | -6/Factory | Entered another Factory area 4713 | -5/Factory | Accompanied by 6 allies 4713 | -5/Factory | Evolved 2 slots: Propulsion x1, Utility x1 5007 | -5/Factory | Build established: Scavenger-Tank 5168 | -5/Factory | Lost 3 parts (1p1u1w) 5168 | -5/Factory | Lost 5 allies 5204 | -5/Factory | Repaired Hvy. Beamcaster 5286 | -5/Factory | Lost 3 parts (2u1w) 5552 | -5/Factory | Lost 5 parts (1p2n1u1w) 5561 | -5/Factory | Build established: Tank 5628 | -5/Factory | Cargo convoy interrupted 5662 | -5/Factory | Discovered new exit (range 16) 5669 | -5/Factory | Entered another Factory area 5669 | -4/Factory | Evolved 2 slots: Propulsion x1, Utility x1 5900 | -4/Factory | Discovered new exit (range 13) 6000 | -4/Factory | Core integrity fell below 50% 6007 | -4/Factory | Entered Research 6007 | -3/Research | Evolved 2 slots: Power x1, Utility x1 6023 | -3/Research | Lost 13 parts (1p3n7u2w) 6117 | -3/Research | Build established: Mutant 6244 | -3/Research | Found Gamma Bomb Array 6472 | -3/Research | Core integrity fell below 50% 6486 | -3/Research | Core integrity fell below 20% 6498 | -3/Research | Cargo convoy interrupted 6498 | -3/Research | Spotted Executioner 6501 | -3/Research | Lost 8 parts (1p3n3u1w) 6527 | -3/Research | Destroyed by G-67 Veteran with Plasma Rifle Last Messages --------------- Impulse Thruster Array destroyed. Mic. Antimatter Reactor destroyed. S-43 Plague destroyed. P-80 Master resets P-80 Master, system corruption cleaned. Adv. Reaction Control System destroyed. Slug penetrates Wall. Penetrated by Slug. Slug penetrates Wall. Penetrated by Slug. Slug penetrates Wall. C-30 ARC bursts open, deploying its payload. Executioner unfolds itself. X-87 Electro unfolds itself. P-80 Master unfolds itself. I-47 Archangel unfolds itself. ALERT: Cargo convoy interrupted, initiating access lockdown. System corrupted: Energy discharge (-24). Critical hit (Burn: +50). Map ----- +----------------------------------------------------+ | ???????????????????????????????????????????# #? | | ???????????????????????????????????????????# #? | | ???????????????????????????????????????????# ## | | ???????????????????????????????????????????# ## | | ???????????????????????????????????????????# ## | | ???????????????????????????????????????????# ## | | ???????????????????????????????????????????# ## | | ???????????????????????????????????????????# ## | | ???????????????????????????????????????????? ## | | ?????????????????????????????????????????????#+### | | ?????????????????????????????????????????????# / | | ?????????????????????????????????????????????# ### | | ?????????????????????????????????????????????# #?# | | ?????????????????????????????????????????????# #?# | | ?????????????????????????????????????????????# #?# | | ???????????????????????????????############### ### | | ???????????????????????????????# ! | | ???????????????????????????????# p ! | | ???????????????????????????????# ! | | ???????????????????????????????# p p | | ???????????????????????????????# ######p### | | ????????????????????#??????????# s #???? # | | ????????????????????# ?????????# ##??? # | | ????????????????????# ######### +???"" !# | | ????????????????????# g gg ss ##???"" # | | ????????????????????# @ s #????"" # | | ???????????????????############# #???? # | | ???????????????????# #????# #?????? # | | ???????????????????# ###### ########## | | ???????????????????# + + # | | ???????????????????# #+##### ### # | | ???????????????????# ! # #?# #?# w # | | ???????????????????# # #?# #?# """" # | | ???????????????????######## #?# #?# """" + | | ??????????????????????????# #?# #?# """" # | | ??????????????????????????# = #?# #?# """" # | | ??????????????????????????# #?# #?# # | | ??????????????????????????# #?# #?# # | | ??????????????????????????#####?# #?########## | | ???????????????????????????????##+############ | | ???????????????????????????????# !!! # | | ???????????????????????????????# !!! # | | ???????????????????????????????# !!! # | | ???????????????????????????????# # | | ???????????????????????????????# + | | ???????????????????????????????# * # | | ???????????????????????????????############### | | ?????????????????????????????????????????????# | | ?????????????????????????????????????????????# | | ?????????????????????????????????????????????# | +----------------------------------------------------+ Best States ------------- Heat Dissipation 103 Coolant Potential 120 Energy Generation 33 Energy Capacity 465 Matter Stores 300 Matter Capacity 300 Sight Range 16 Robot Scan Range 16 Terrain Scan Range 16 Terrain Scan Density 210 Base Temperature (-) 150 EM Shielding 2 Armor Coverage 375 Core Shielding 20 Utility Shielding 66 Weapon Shielding 33 Weapon Cycling 15 Evasion (%) 74 Targeting Accuracy 8 Core Analysis 6 Recoil Reduction 1 Energy Filtering 30 Particle Charging 20 Offensive Hacking 14 Defensive Hacking 10 Item Schematics ----------------- None Robot Schematics ------------------ None Fabricated ------------ Nothing Repaired ---------- Hvy. Beamcaster | 49% | -5/Factory Alien Tech Used ----------------- None Achievements -------------- Backstab Leap Before You Look Challenges ------------ None Game ------ Seed HypertargetingHackingStorage Manual? 0 Play Time 01:20:12 Cumulative 49.4 hours Start 2025.09.15 @ 22:29:13 End 2025.09.16 @ 20:34:53 Sessions 3 Manual Loads 0 Difficulty Rogue Special Mode None Game No. 64 Rogue 64 Adventurer 0 Explorer 0 Win Type - Total 0 Types 0/0/0/0/0/0/0/0/0/0 Lore% 22 Gallery% 40 Achievement% 29 Wizard Run 0 Options --------- Layout 1 ASCII 0 Keyboard 0 Movement Numpad Keybinds 0 Fullscreen 1 Font 24/Smallcaps Map View 50x35 Zoom Use 0% Tactical HUD 0 Map Filters NONE Filters NONE Steam 1 RUN: 90e96e60-c669-4835-80f7-dd51ad2baf9e